bitfinex/quotes_BTCUSD_20240901
["timestamp","ask_amount","ask_price","bid_price","bid_amount"]
[1725157290586,0.170247,58738.0,58737.0,0.30792333]
[1725157291024,0.340446,58747.0,58737.0,0.30792333]
[1725157291025,0.170245,58739.0,58737.0,0.30792333]
[1725157291291,0.170243,58740.0,58737.0,0.30792333]
[1725157291520,0.34046,58744.0,58737.0,0.30792333]
[1725157291521,0.340473,58742.0,58737.0,0.30792333]
[1725157291725,0.170246,58739.0,58737.0,0.30792333]
[1725157291945,0.170247,58738.0,58737.0,0.30792333]
[1725157292396,0.510742,58738.0,58737.0,0.30792333]
[1725157292607,0.170247,58738.0,58737.0,0.30792333]
[1725157293328,0.170262,58733.0,58732.0,0.30792333]
[1725157293548,0.46717354,58745.0,58727.0,0.21942333]
[1725157293549,0.51083,58728.0,58727.0,0.21942333]
[1725157293760,0.851383,58728.0,58727.0,0.21942333]
[1725157293973,0.51083,58728.0,58727.0,0.21942333]
[1725157294623,0.1,58733.0,58722.0,0.21942333]
[1725157294624,0.340582,58723.0,58722.0,0.21942333]
[1725157294869,0.510873,58723.0,58722.0,0.21942333]
[1725157295171,0.340599,58720.0,58715.0,0.0885]
[1725157295321,0.340599,58720.0,58712.0,0.69492333]
[1725157295322,0.51096,58713.0,58712.0,0.4755]
[1725157295540,0.8516,58713.0,58712.0,0.4755]
[1725157295988,0.51096,58713.0,58712.0,0.4755]
[1725157297070,0.87832523,58713.0,58712.0,0.4755]
[1725157298013,0.97832523,58713.0,58712.0,0.4755]
[1725157298687,0.170334,58709.0,58707.0,0.21942333]
[1725157298963,0.46736523,58713.0,58712.0,0.21942333]
[1725157298964,0.1,58713.0,58712.0,0.21942333]
[1725157299154,0.170306,58718.0,58713.0,0.170318]
[1725157299425,0.170284,58726.0,58721.0,0.170296]
[1725157299668,0.1,58734.0,58722.0,0.21942333]
[1725157299669,0.510873,58723.0,58722.0,0.21942333]
[1725157299915,0.60540786,58734.0,58717.0,0.21942333]
[1725157299916,0.170305,58718.0,58717.0,0.21942333]
[1725157300139,0.851527,58718.0,58717.0,0.21942333]
[1725157300598,0.510916,58718.0,58717.0,0.21942333]
[1725157300814,0.1,58725.0,58717.0,0.21942333]
[1725157301052,0.1,58725.0,58713.0,0.340636]
[1725157301053,0.170288,58725.0,58722.0,0.21942333]
[1725157301279,0.1,58726.0,58722.0,0.21942333]
[1725157301280,0.851455,58723.0,58722.0,0.21942333]
[1725157301544,0.851455,58723.0,58712.0,0.499143]
[1725157301545,0.170307,58718.0,58717.0,0.21942333]
[1725157301751,0.510918,58718.0,58717.0,0.21942333]
[1725157302205,0.87825202,58718.0,58717.0,0.21942333]
[1725157302431,0.17032,58713.0,58712.0,0.37792333]
[1725157302653,0.51096,58713.0,58712.0,0.37792333]
[1725157303407,0.02672302,58718.0,58712.0,0.41571566]
[1725157303642,0.02672302,58718.0,58712.0,0.37792333]
[1725157303643,0.340616,58717.0,58712.0,0.37792333]
[1725157303885,0.17032,58713.0,58712.0,0.37882313]
[1725157304121,0.340616,58717.0,58712.0,0.37882313]
[1725157304560,0.340629,58715.0,58712.0,0.37882313]
[1725157304780,0.340616,58717.0,58712.0,0.37882313]
[1725157304781,0.340616,58717.0,58712.0,0.43373874]
[1725157305007,0.17032,58713.0,58712.0,0.43373874]
[1725157306392,0.17032,58713.0,58712.0,0.27523874]
[1725157306393,0.51096,58713.0,58712.0,0.27523874]
[1725157307562,0.51096,58713.0,58712.0,0.27023874]
[1725157307788,0.8516,58713.0,58712.0,0.0008998]
[1725157312294,0.68128,58713.0,58712.0,0.0008998]
[1725157312718,0.70800297,58713.0,58712.0,0.0008998]
[1725157312930,0.68128,58713.0,58712.0,0.0008998]
[1725157313355,0.9516,58713.0,58712.0,0.0008998]
[1725157313784,0.61096,58713.0,58712.0,0.0008998]
[1725157314491,0.97832309,58713.0,58712.0,0.0008998]
[1725157314707,0.63768309,58713.0,58712.0,0.0008998]
[1725157314944,0.29704309,58713.0,58712.0,0.0008998]
[1725157315165,0.63768309,58713.0,58712.0,0.0008998]
[1725157316029,0.29704309,58713.0,58712.0,0.0008998]
[1725157316237,0.63768309,58713.0,58712.0,0.0008998]
[1725157317070,0.97914209,58713.0,58712.0,0.0008998]
[1725157319251,0.952419,58713.0,58712.0,0.0008998]
[1725157319906,0.611779,58713.0,58712.0,0.0008998]
[1725157320371,0.611779,58713.0,58712.0,0.17642211]
[1725157320372,0.100819,58713.0,58712.0,0.17642211]
[1725157320585,0.000819,58713.0,58712.0,0.36438632]
[1725157320813,0.100819,58713.0,58712.0,0.28546432]
[1725157321452,0.100819,58713.0,58712.0,0.45578632]
[1725157321865,0.000819,58713.0,58712.0,0.45578632]
[1725157322340,0.000819,58713.0,58712.0,0.49961837]
[1725157322508,0.02754052,58713.0,58712.0,0.49961837]
[1725157322938,0.02754052,58713.0,58712.0,0.32929637]
[1725157323888,0.02754052,58713.0,58712.0,0.49961837]
[1725157324769,0.000819,58713.0,58712.0,0.49961837]
[1725157325230,0.000819,58713.0,58712.0,0.84026337]
[1725157325468,0.000819,58713.0,58712.0,1.18090837]
[1725157326466,0.02754026,58713.0,58712.0,0.84026337]
[1725157327154,0.02648857,58713.0,58712.0,0.84026337]
[1725157327628,0.02648857,58713.0,58712.0,1.18090837]
[1725157328787,0.02648857,58713.0,58712.0,1.59145337]
[1725157329247,0.170285,58725.0,58721.0,0.170295]
[1725157329477,0.170285,58725.0,58723.0,0.21935436]
[1725157329716,0.0718,58730.0,58723.0,0.21935436]
[1725157329951,0.0718,58730.0,58715.0,0.21935436]
[1725157329952,0.627508,58729.0,58715.0,0.21935436]
[1725157330183,0.510936,58716.0,58715.0,0.23879653]
[1725157330431,0.510936,58716.0,58715.0,0.21935436]
[1725157330673,0.170314,58716.0,58715.0,0.21935436]
[1725157331149,0.340599,58721.0,58715.0,0.21935436]
[1725157331603,0.170306,58718.0,58715.0,0.21935436]
[1725157331829,0.340619,58717.0,58715.0,0.21935436]
[1725157332066,0.170306,58718.0,58715.0,0.21935436]
[1725157332324,0.340574,58725.0,58719.0,0.170301]
[1725157332325,0.170291,58723.0,58719.0,0.170301]
[1725157332552,0.1,58722.0,58720.0,0.1389923]
[1725157332782,0.1,58722.0,58721.0,0.21935436]
[1725157333738,0.270293,58722.0,58721.0,0.21935436]
[1725157335127,0.1,58722.0,58721.0,0.21935436]
[1725157335350,0.1,58722.0,58721.0,0.30151057]
[1725157335782,0.1,58723.0,58721.0,0.30151057]
[1725157336003,0.1,58723.0,58721.0,0.21935436]
[1725157336468,0.340526,58733.0,58721.0,0.21935436]
[1725157336469,0.000818,58740.0,58724.0,0.0956]
[1725157336686,0.340489,58739.0,58734.0,0.21935436]
[1725157336901,0.170253,58736.0,58734.0,0.21935436]
[1725157337568,0.000818,58740.0,58734.0,0.21935436]
[1725157337806,0.17106,58740.0,58734.0,0.21935436]
[1725157338043,0.17106,58740.0,58735.0,0.07301414]
[1725157338271,0.17106,58740.0,58739.0,0.21935436]
[1725157338487,0.000818,58740.0,58739.0,0.38959836]
[1725157338719,0.000818,58740.0,58739.0,0.73008736]
[1725157338939,0.000818,58740.0,58723.0,0.21935436]
[1725157338940,0.0713,58739.0,58723.0,0.21935436]
[1725157339169,0.510811,58730.0,58723.0,0.21935436]
[1725157339388,0.340514,58735.0,58723.0,0.21935436]
[1725157339603,0.17027,58730.0,58723.0,0.21935436]
[1725157339836,0.510811,58730.0,58723.0,0.21935436]
[1725157340083,0.17027,58730.0,58729.0,0.52305]
[1725157340330,0.510811,58730.0,58729.0,0.4755]
[1725157340794,0.17027,58730.0,58729.0,0.4755]
[1725157341298,0.510811,58730.0,58729.0,0.4755]
[1725157341514,0.610811,58730.0,58729.0,0.4755]
[1725157342174,0.610811,58730.0,58729.0,0.52305]
[1725157342615,0.1,58730.0,58729.0,0.4755]
[1725157342841,0.1,58732.0,58729.0,0.4755]
[1725157343067,0.17027,58730.0,58729.0,0.4755]
[1725157343284,0.1,58737.0,58722.0,0.21935436]
[1725157343285,0.340526,58733.0,58722.0,0.55993736]
[1725157343491,0.440532,58732.0,58725.0,0.170284]
[1725157343709,0.170271,58730.0,58726.0,0.07336237]
[1725157344371,0.170271,58730.0,58727.0,0.17543233]
[1725157344799,0.170273,58729.0,58727.0,0.17543233]
[1725157346600,0.170276,58728.0,58727.0,0.17543233]
[1725157347262,0.1,58732.0,58723.0,0.17543233]
[1725157347263,0.34055,58729.0,58723.0,0.17543233]
[1725157347484,0.170286,58725.0,58723.0,0.17543233]
[1725157347753,0.170286,58725.0,58723.0,0.25755566]
[1725157347964,0.34055,58729.0,58723.0,0.25755566]
[1725157347965,0.170288,58724.0,58723.0,0.25755566]
[1725157348190,0.51085,58726.0,58723.0,0.25755566]
[1725157348412,0.340565,58726.0,58723.0,0.17543233]
[1725157348640,0.11018,58725.0,58714.0,0.4755]
[1725157348884,0.11018,58725.0,58712.0,0.0008998]
[1725157348885,0.091,58724.0,58712.0,0.0008998]
[1725157349081,1.19063233,58713.0,58712.0,0.0008998]
[1725157349349,2.32607033,58713.0,58712.0,0.0008998]
[1725157349591,2.28990833,58713.0,58712.0,0.0008998]
[1725157350033,2.03742833,58713.0,58712.0,0.0008998]
[1725157350280,1.98895233,58713.0,58712.0,0.0008998]
[1725157350496,1.81352,58713.0,58712.0,0.0008998]
[1725157351161,1.58789,58713.0,58712.0,0.0008998]
[1725157352297,0.68356,58713.0,58712.0,0.0008998]
[1725157352515,0.27032,58713.0,58712.0,0.0008998]
[1725157352943,0.340632,58715.0,58712.0,0.0008998]
[1725157353156,0.17032,58713.0,58712.0,0.0008998]
[1725157353621,0.01781175,58716.0,58712.0,0.22044536]
[1725157353837,0.340599,58720.0,58713.0,0.15191074]
[1725157353838,0.340606,58719.0,58713.0,0.15191074]
[1725157354087,0.170308,58717.0,58713.0,0.15191074]
[1725157354542,0.51096,58713.0,58712.0,0.0008998]
[1725157354757,0.8516,58713.0,58712.0,0.0008998]
[1725157355653,1.29224,58713.0,58712.0,0.0008998]
[1725157355876,2.105107,58713.0,58712.0,0.0008998]
[1725157356101,2.08205,58713.0,58712.0,0.0008998]
[1725157356318,1.992968,58713.0,58712.0,0.0008998]
[1725157356540,1.939026,58713.0,58712.0,0.0008998]
[1725157357203,2.089945,58713.0,58712.0,0.0008998]
[1725157357398,2.503185,58713.0,58712.0,0.0008998]
[1725157358561,2.52832133,58713.0,58712.0,0.0008998]
[1725157359467,2.37537233,58713.0,58712.0,0.0008998]
[1725157359720,2.350236,58713.0,58712.0,0.0008998]
[1725157362837,2.313794,58713.0,58712.0,0.0008998]
[1725157363059,2.25679,58713.0,58712.0,0.0008998]
[1725157363514,1.82515,58713.0,58712.0,0.0008998]
[1725157363739,1.36484,58713.0,58712.0,0.0008998]
[1725157363957,1.603324,58713.0,58712.0,0.0008998]
[1725157364905,1.943964,58713.0,58712.0,0.0008998]
[1725157365123,1.603324,58713.0,58712.0,0.0008998]
[1725157365344,1.943964,58713.0,58712.0,0.0008998]
[1725157365602,1.567854,58713.0,58712.0,0.0008998]
[1725157365810,1.504554,58713.0,58712.0,0.0008998]
[1725157366025,1.505373,58713.0,58712.0,0.0008998]
[1725157366282,1.365659,58713.0,58712.0,0.0008998]
[1725157367365,1.675575,58713.0,58712.0,0.0008998]
[1725157367586,1.602975,58713.0,58712.0,0.0008998]
[1725157367805,1.293059,58713.0,58712.0,0.0008998]
[1725157368045,0.952419,58713.0,58712.0,0.0008998]
[1725157368492,0.782099,58713.0,58712.0,0.0008998]
[1725157368741,0.952419,58713.0,58712.0,0.0008998]
[1725157368959,0.511779,58713.0,58712.0,0.0008998]
[1725157369217,0.171139,58713.0,58712.0,0.0008998]
[1725157369435,0.511779,58713.0,58712.0,0.0008998]
[1725157369885,0.852419,58713.0,58712.0,0.0008998]
[1725157370360,0.952419,58713.0,58712.0,0.0008998]
[1725157370612,0.000819,58713.0,58712.0,0.2645218]
[1725157370839,0.000819,58713.0,58712.0,1.03495087]
[1725157371061,0.000819,58713.0,58712.0,0.42345476]
[1725157371289,0.000819,58713.0,58712.0,0.1673998]
[1725157371484,0.511779,58713.0,58712.0,0.0008998]
[1725157371742,0.852419,58713.0,58712.0,0.0008998]
[1725157375217,0.511779,58713.0,58712.0,0.0008998]
[1725157376325,0.852419,58713.0,58712.0,0.0008998]
[1725157376516,0.511779,58713.0,58712.0,0.0008998]
[1725157376966,0.171139,58713.0,58712.0,0.0008998]
[1725157377180,0.171139,58713.0,58712.0,0.01802298]
[1725157377619,0.000819,58713.0,58712.0,0.18834498]
[1725157377838,0.000819,58713.0,58712.0,0.62228998]
[1725157378279,0.000819,58713.0,58712.0,1.03613498]
[1725157378495,0.000819,58713.0,58712.0,1.37677998]
[1725157379657,0.000819,58713.0,58712.0,1.37877998]
[1725157380091,0.000819,58713.0,58712.0,1.37677998]
[1725157381192,0.000819,58713.0,58712.0,1.38177998]
[1725157381399,0.000819,58713.0,58712.0,1.38377998]
[1725157381622,0.000819,58713.0,58712.0,1.73442498]
[1725157381860,0.000819,58713.0,58712.0,1.75980498]
[1725157382718,0.000819,58713.0,58712.0,1.41915998]
[1725157384047,0.000819,58713.0,58712.0,1.41215998]
[1725157384260,0.000819,58713.0,58712.0,1.06151498]
[1725157387216,0.000819,58713.0,58712.0,1.06651498]
[1725157387913,0.000819,58713.0,58712.0,0.72086998]
[1725157388163,0.000819,58713.0,58712.0,1.06151498]
[1725157388400,0.000819,58713.0,58712.0,0.72086998]
[1725157389270,0.000819,58713.0,58712.0,1.06151498]
[1725157390135,0.000819,58713.0,58712.0,0.72086998]
[1725157392600,0.000819,58713.0,58712.0,0.20990298]
[1725157392816,0.511779,58713.0,58712.0,0.0262798]
[1725157393047,0.852419,58713.0,58712.0,0.0262798]
[1725157393512,1.193059,58713.0,58712.0,0.0262798]
[1725157395499,1.193059,58713.0,58712.0,0.0008998]
[1725157395727,0.852419,58713.0,58712.0,0.0008998]
[1725157395948,0.852419,58713.0,58712.0,0.01854431]
[1725157395949,0.511779,58713.0,58712.0,0.01854431]
[1725157396856,0.000819,58713.0,58712.0,0.01854431]
[1725157397077,0.000819,58713.0,58712.0,0.18654431]
[1725157397529,0.000819,58713.0,58712.0,0.69751131]
[1725157397756,0.000819,58713.0,58712.0,1.03815631]
[1725157399504,0.000819,58713.0,58712.0,0.18654431]
[1725157399750,0.000819,58713.0,58712.0,0.01854431]
[1725157399965,0.000819,58713.0,58712.0,0.18886631]
[1725157401804,0.000819,58713.0,58712.0,0.01854431]
[1725157403368,0.000819,58713.0,58712.0,0.0008998]
[1725157403369,0.511779,58713.0,58712.0,0.0008998]
[1725157403655,0.852419,58713.0,58712.0,0.0008998]
[1725157405881,1.193059,58713.0,58712.0,0.0008998]
[1725157406344,0.511779,58713.0,58712.0,0.0008998]
[1725157406811,0.171139,58713.0,58712.0,0.01854431]
[1725157407025,0.511779,58713.0,58712.0,0.01854431]
[1725157407478,0.511779,58713.0,58712.0,0.52941162]
[1725157407479,0.000819,58713.0,58712.0,0.52941162]
[1725157407698,0.000819,58713.0,58712.0,0.85241211]
[1725157408377,0.000819,58713.0,58712.0,1.19305711]
[1725157409914,0.000819,58713.0,58712.0,0.0008998]
[1725157410355,0.000819,58713.0,58712.0,0.5118668]
[1725157410592,0.000819,58713.0,58712.0,0.78017461]
[1725157410810,0.000819,58713.0,58712.0,0.61517461]
[1725157411262,0.000819,58713.0,58712.0,0.27452961]
[1725157411701,0.000819,58713.0,58712.0,0.10420761]
[1725157411970,0.171139,58713.0,58712.0,0.10420761]
[1725157412193,0.171139,58713.0,58712.0,0.0008998]
[1725157412631,0.511779,58713.0,58712.0,0.0008998]
[1725157413323,0.852419,58713.0,58712.0,0.0008998]
[1725157417713,0.68128,58713.0,58712.0,0.0008998]
[1725157418172,0.8516,58713.0,58712.0,0.0008998]
[1725157420842,1.19224,58713.0,58712.0,0.0008998]
[1725157425908,1.193058,58713.0,58712.0,0.0008998]
[1725157427484,0.852418,58713.0,58712.0,0.0008998]
[1725157427697,0.511778,58713.0,58712.0,0.02782431]
[1725157427908,0.511778,58713.0,58712.0,0.0008998]
[1725157430774,0.000818,58713.0,58712.0,0.0796998]
[1725157433264,0.000818,58713.0,58712.0,1.10685711]
[1725157433490,0.000818,58713.0,58712.0,1.31068345]
[1725157435328,0.000818,58713.0,58712.0,0.97003845]
[1725157435974,0.000818,58713.0,58712.0,0.55059345]
[1725157437993,0.000818,58713.0,58712.0,1.12085711]
[1725157438214,0.000818,58713.0,58712.0,1.88594711]
[1725157438452,0.000818,58713.0,58712.0,1.96209768]
[1725157438667,0.000818,58713.0,58712.0,1.98767296]
[1725157439528,0.000818,58713.0,58712.0,1.91094711]
[1725157439759,0.000818,58713.0,58712.0,2.1562246]
[1725157441530,0.000818,58713.0,58712.0,2.1662246]
[1725157442049,0.000818,58713.0,58712.0,2.2090046]
[1725157442981,0.000818,58713.0,58712.0,2.21737517]
[1725157443212,0.0762,58737.0,58736.0,0.170253]
[1725157443472,0.000819,58738.0,58736.0,0.170253]
[1725157443473,0.000819,58738.0,58737.0,0.51075]
[1725157444148,0.000819,58738.0,58737.0,0.17025]
[1725157444376,0.000819,58738.0,58737.0,0.17365461]
[1725157444824,0.000819,58738.0,58737.0,0.17025]
[1725157445050,0.000819,58738.0,58737.0,0.27979494]
[1725157445963,0.000819,58738.0,58737.0,1.4762996]
[1725157446182,0.000819,58738.0,58737.0,1.47789494]
[1725157446669,0.000819,58738.0,58737.0,1.13239494]
[1725157447141,0.000819,58738.0,58737.0,0.62029494]
[1725157448022,0.000819,58738.0,58730.0,0.340536]
[1725157448319,0.170267,58731.0,58730.0,0.04278]
[1725157448558,0.510803,58731.0,58730.0,0.04278]
[1725157448804,0.851341,58731.0,58730.0,0.04278]
[1725157449032,0.851341,58731.0,58730.0,0.051828]
[1725157449270,0.340553,58728.0,58723.0,0.17554531]
[1725157449511,0.170288,58724.0,58723.0,0.17554531]
[1725157449752,0.170288,58724.0,58719.0,0.34584631]
[1725157450402,0.170288,58724.0,58719.0,0.17554531]
[1725157450666,0.170294,58722.0,58719.0,0.17554531]
[1725157450901,0.170294,58722.0,58720.0,0.01755453]
[1725157451128,0.432993,58721.0,58715.0,0.4755]
[1725157451353,0.340604,58720.0,58715.0,0.04278]
[1725157451573,0.0924,58721.0,58715.0,0.04278]
[1725157451799,0.170305,58718.0,58716.0,0.02139988]
[1725157452023,0.170305,58718.0,58716.0,0.06417988]
[1725157453182,0.170305,58718.0,58716.0,0.04278]
[1725157454260,0.340585,58723.0,58716.0,0.04278]
[1725157454485,0.170298,58721.0,58718.0,0.17554531]
[1725157454697,0.1703,58720.0,58718.0,0.21832531]
[1725157454914,0.1703,58720.0,58719.0,0.02183253]
[1725157455633,0.0924,58729.0,58719.0,0.02183253]
[1725157455830,0.170283,58726.0,58722.0,0.34583831]
[1725157456054,0.170283,58726.0,58723.0,0.03676708]
[1725157457652,0.170279,58727.0,58723.0,0.20705708]
[1725157457879,0.1,58726.0,58723.0,0.20705708]
[1725157458101,0.1,58726.0,58725.0,0.34057]
[1725157458330,0.170268,58731.0,58726.0,0.17028]
[1725157458546,0.1,58730.0,58726.0,0.34582531]
[1725157458986,0.170262,58733.0,58729.0,0.170273]
[1725157459224,0.418495,58739.0,58730.0,0.25434317]
[1725157459225,0.1,58732.0,58730.0,0.25434317]
[1725157459461,0.1,58732.0,58730.0,0.42461317]
[1725157460336,0.1,58733.0,58732.0,0.170264]
[1725157460557,0.1,58736.0,58733.0,0.170261]
[1725157461039,0.000818,58740.0,58737.0,0.17025]
[1725157461251,0.000818,58740.0,58736.0,0.170252]
[1725157461677,0.000818,58740.0,58737.0,0.17025]
[1725157461891,0.000818,58740.0,58737.0,0.6137731]
[1725157462314,0.000818,58740.0,58737.0,0.2732731]
[1725157462530,0.000818,58740.0,58737.0,0.27667764]
[1725157462743,0.000818,58740.0,58737.0,0.61717764]
[1725157463667,0.000818,58740.0,58737.0,0.9542731]
[1725157464998,0.000818,58740.0,58737.0,0.6137731]
[1725157465854,0.000818,58740.0,58737.0,0.1030231]
[1725157466067,0.000818,58740.0,58735.0,0.170255]
[1725157466068,0.170245,58739.0,58735.0,0.170255]
[1725157466722,0.170245,58739.0,58734.0,0.34580331]
[1725157466939,0.000818,58740.0,58734.0,0.34580331]
[1725157466940,0.171066,58738.0,58734.0,0.34580331]
[1725157467379,0.171066,58738.0,58734.0,0.170258]
[1725157467594,0.170259,58734.0,58732.0,0.08633422]
[1725157467807,0.170259,58734.0,58733.0,0.07726925]
[1725157468492,0.170259,58734.0,58730.0,0.17554531]
[1725157468711,0.170262,58733.0,58730.0,0.17554531]
[1725157469134,0.170267,58731.0,58730.0,0.17554531]
[1725157469794,0.340521,58734.0,58730.0,0.17554531]
[1725157469795,0.170266,58732.0,58730.0,0.17554531]
[1725157471111,0.170267,58731.0,58730.0,0.17554531]
[1725157471312,0.170264,58733.0,58730.0,0.17554531]
[1725157471530,0.340513,58735.0,58730.0,0.17554531]
[1725157471531,0.170266,58732.0,58730.0,0.17554531]
[1725157472395,0.170264,58732.0,58730.0,0.17554531]
[1725157472609,0.170264,58732.0,58731.0,0.03458223]
[1725157472836,0.510793,58732.0,58731.0,0.03458223]
[1725157473264,1.191851,58732.0,58731.0,0.03458223]
[1725157473468,0.0774,58737.0,58720.0,0.65104531]
[1725157473698,0.170288,58724.0,58720.0,0.645799]
[1725157473898,0.340567,58726.0,58723.0,0.17554531]
[1725157473899,0.510851,58726.0,58723.0,0.17554531]
[1725157474108,0.340567,58726.0,58723.0,0.17554531]
[1725157475365,0.340567,58726.0,58721.0,0.2348759]
[1725157475366,0.170292,58723.0,58721.0,0.0645799]
[1725157475571,0.0774,58724.0,58721.0,0.0645799]
[1725157475797,0.170299,58721.0,58719.0,0.17554531]
[1725157476044,0.170299,58720.0,58719.0,0.17554531]
[1725157476512,0.170299,58720.0,58715.0,0.170312]
[1725157476513,0.170311,58716.0,58715.0,0.17554531]
[1725157476734,0.170311,58716.0,58715.0,0.21832531]
[1725157477880,0.510933,58716.0,58715.0,0.04278]
[1725157478102,1.026455,58716.0,58715.0,0.04278]
[1725157478332,1.367077,58716.0,58715.0,0.04278]
[1725157478802,0.851585,58714.0,58712.0,0.0008998]
[1725157479035,1.192219,58714.0,58712.0,0.0008998]
[1725157479250,1.19979614,58714.0,58712.0,0.0008998]
[1725157479696,1.29979614,58714.0,58712.0,0.0008998]
[1725157480136,1.88502614,58714.0,58712.0,0.0008998]
[1725157480356,2.05992614,58714.0,58712.0,0.0008998]
[1725157480600,2.57610545,58714.0,58712.0,0.0008998]
[1725157481054,1.81533014,58714.0,58712.0,0.0008998]
[1725157481253,2.14250914,58714.0,58712.0,0.0008998]
[1725157485246,2.31805445,58714.0,58712.0,0.0008998]
[1725157486706,2.65868845,58714.0,58712.0,0.0008998]
[1725157486919,2.68668845,58714.0,58712.0,0.0008998]
[1725157487966,2.68868845,58714.0,58712.0,0.0008998]
[1725157488388,2.69868845,58714.0,58712.0,0.0008998]
[1725157489911,2.06752,58713.0,58712.0,0.0008998]
[1725157490122,5.543973,58713.0,58712.0,0.0008998]
[1725157490329,5.49453324,58713.0,58712.0,0.0008998]
[1725157490544,5.46947224,58713.0,58712.0,0.0008998]
[1725157490755,5.40641524,58713.0,58712.0,0.0008998]
[1725157490974,3.39979624,58713.0,58712.0,0.0008998]
[1725157492799,3.41760799,58713.0,58712.0,0.0008998]
[1725157493400,3.41760799,58713.0,58712.0,8e-07]
[1725157493401,3.75824799,58713.0,58712.0,8e-07]
[1725157493791,1.369646,58693.0,58692.0,0.0057457]
[1725157493990,1.469646,58693.0,58692.0,0.0057457]
[1725157494423,1.47718748,58693.0,58692.0,0.0057457]
[1725157495032,2.41022048,58693.0,58692.0,0.0057457]
[1725157495436,2.41022048,58693.0,58691.0,5e-07]
[1725157495437,1.538424,58692.0,58691.0,5e-07]
[1725157495635,4.649338,58692.0,58691.0,5e-07]
[1725157495790,2.18872539,58692.0,58691.0,5e-07]
[1725157497222,2.18672539,58692.0,58691.0,5e-07]
[1725157497434,1.84596439,58692.0,58691.0,5e-07]
[1725157498679,2.04675603,58692.0,58691.0,5e-07]
[1725157498900,2.04675603,58692.0,58667.0,0.17554531]
[1725157498902,248.73161053,58500.0,58499.0,0.25638858]
[1725157499125,229.35137677,58500.0,58499.0,20.11104322]
[1725157499331,223.86479523,58500.0,58499.0,21.9745638]
[1725157499599,214.81793285,58500.0,58499.0,21.18978363]
[1725157499841,200.0337603,58500.0,58499.0,21.85210905]
[1725157500103,187.54795302,58500.0,58499.0,22.01782705]
[1725157500348,172.4194117,58500.0,58499.0,15.86356689]
[1725157500561,162.37511532,58500.0,58499.0,6.74948309]
[1725157500776,161.12698269,58500.0,58499.0,5.66305619]
[1725157500992,160.43554892,58500.0,58499.0,5.62653399]
[1725157501203,159.33945385,58500.0,58499.0,5.79357115]
[1725157501502,157.97616994,58500.0,58499.0,5.42916916]
[1725157501720,155.68827325,58500.0,58499.0,5.60172497]
[1725157501946,154.4808738,58500.0,58499.0,5.81592497]
[1725157502164,151.07408483,58500.0,58499.0,7.22347142]
[1725157502387,150.10903865,58500.0,58499.0,6.37304125]
[1725157502609,149.7303463,58500.0,58499.0,4.03501453]
[1725157502836,147.56411675,58500.0,58499.0,4.72205365]
[1725157503035,147.56411675,58500.0,58499.0,7.07131882]
[1725157503036,147.01270482,58500.0,58499.0,7.07131882]
[1725157503274,146.61628714,58500.0,58499.0,7.47516684]
[1725157503489,146.5541595,58500.0,58499.0,7.95721624]
[1725157503697,146.52470917,58500.0,58499.0,7.96631128]
[1725157503909,146.48116958,58500.0,58499.0,7.13492624]
[1725157504132,146.38426385,58500.0,58499.0,6.60795518]
[1725157504380,146.38426385,58500.0,58499.0,7.02861518]
[1725157504381,146.34564702,58500.0,58499.0,7.02861518]
[1725157504601,141.85907708,58500.0,58499.0,5.42918291]
[1725157504824,141.85907708,58500.0,58499.0,5.26174137]
[1725157504825,139.70038247,58500.0,58499.0,5.26174137]
[1725157505046,138.42831282,58500.0,58499.0,7.9656452]
[1725157505289,138.42831282,58500.0,58499.0,9.19915103]
[1725157505290,137.11038806,58500.0,58499.0,9.19915103]
[1725157505494,137.11038806,58500.0,58499.0,10.81001206]
[1725157505495,135.77010709,58500.0,58499.0,10.81001206]
[1725157505701,135.77010709,58500.0,58499.0,9.86620898]
[1725157505912,133.43750457,58500.0,58499.0,7.52471315]
[1725157506120,133.43750457,58500.0,58499.0,10.31110098]
[1725157506121,132.17470615,58500.0,58499.0,10.31110098]
[1725157506330,130.95210584,58500.0,58499.0,10.27730115]
[1725157506550,130.04552336,58500.0,58499.0,10.27730115]
[1725157506737,128.1858753,58500.0,58499.0,10.36326098]
[1725157506969,128.1516873,58500.0,58499.0,10.15689498]
[1725157507174,128.1516873,58500.0,58499.0,9.35689498]
[1725157507611,125.40135991,58500.0,58499.0,9.35689498]
[1725157507865,121.10491496,58500.0,58499.0,11.82231912]
[1725157508084,121.07880103,58500.0,58499.0,10.01943271]
[1725157508296,121.07880103,58500.0,58499.0,7.22329671]
[1725157508297,120.7077445,58500.0,58499.0,7.22329671]
[1725157508517,120.7077445,58500.0,58499.0,7.21139671]
[1725157508736,120.6735565,58500.0,58499.0,7.21139671]
[1725157508963,120.6735565,58500.0,58499.0,6.41139671]
[1725157508964,120.5368045,58500.0,58499.0,6.41139671]
[1725157509241,120.5368045,58500.0,58499.0,6.21152188]
[1725157509464,120.5368045,58500.0,58499.0,6.17859596]
[1725157509683,120.5368045,58500.0,58499.0,6.16669596]
[1725157509907,120.5368045,58500.0,58499.0,6.15479596]
[1725157510126,120.5128045,58500.0,58499.0,6.15479596]
[1725157510580,119.62632108,58500.0,58499.0,6.15479596]
[1725157510799,119.62632108,58500.0,58499.0,5.45479596]
[1725157511243,119.40253649,58500.0,58499.0,5.45479596]
[1725157511486,119.06079649,58500.0,58499.0,6.27321396]
[1725157511731,118.86255685,58500.0,58499.0,6.28511396]
[1725157511931,118.69056639,58500.0,58499.0,6.24075579]
[1725157512137,118.51976639,58500.0,58499.0,6.24165889]
[1725157512345,118.34978739,58500.0,58499.0,6.35829906]
[1725157512572,117.47669542,58500.0,58499.0,6.44425889]
[1725157512787,116.43681336,58500.0,58499.0,6.35829906]
[1725157513006,115.75156488,58500.0,58499.0,6.35829906]
[1725157513225,115.06631553,58500.0,58499.0,6.25569906]
[1725157513425,114.06098909,58500.0,58499.0,6.25663631]
[1725157513630,113.36572949,58500.0,58499.0,6.25663631]
[1725157513837,112.99910188,58500.0,58499.0,6.35923631]
[1725157514056,111.46676068,58500.0,58499.0,6.35923631]
[1725157514337,109.91540552,58500.0,58499.0,6.40359448]
[1725157514545,108.27440555,58500.0,58499.0,6.40359448]
[1725157514756,107.71235597,58500.0,58499.0,6.40359448]
[1725157514986,107.44804867,58500.0,58499.0,6.40359448]
[1725157515186,107.27724867,58500.0,58499.0,6.40359448]